bitfinex/quotes_ETHUSD_20220106
["timestamp","ask_amount","ask_price","bid_price","bid_amount"]
[1641476203442,1.91190183,3373.6,3373.3,0.02001814]
[1641476203843,1.91076498,3373.6,3373.3,0.02001814]
[1641476204446,1.82423089,3373.5,3373.3,0.02001814]
[1641476206786,3.88521784,3373.7,3373.3,0.02001814]
[1641476207190,0.00113685,3373.6,3373.3,0.02001814]
[1641476207389,0.00113685,3373.6,3373.3,0.05021814]
[1641476208087,1.74858291,3373.6,3373.3,0.05021814]
[1641476208887,1.74858291,3373.6,3373.3,0.05021812]
[1641476209289,2.98179672,3373.5,3373.3,0.05021812]
[1641476209742,11.62118739,3373.4,3373.3,0.05021812]
[1641476210041,11.63387443,3373.4,3372.4,1.13133776]
[1641476210238,0.74149,3373.1,3372.4,1.13133776]
[1641476210436,0.74149,3373.1,3372.5,0.00511581]
[1641476210641,2.74990154,3373.0,3372.5,0.00511581]
[1641476210838,1.4829728,3373.1,3372.5,0.69214224]
[1641476211037,5.95132231,3373.3,3372.5,0.69214224]
[1641476211238,4.80562231,3373.3,3372.6,0.00454739]
[1641476211537,0.7415,3372.9,3372.6,0.00454739]
[1641476212643,0.7415,3372.9,3372.2,0.00682108]
[1641476212839,1.64336054,3372.7,3372.2,0.00682108]
[1641476213491,1.64336054,3372.7,3372.3,0.68707245]
[1641476213689,2.7381301,3372.6,3372.3,0.68707245]
[1641476213888,2.70491896,3372.6,3372.4,0.00568423]
[1641476214690,3.44649206,3372.6,3372.4,0.00568423]
[1641476214891,14.35133861,3372.5,3372.4,0.00568423]
[1641476215295,16.08521131,3372.5,3371.6,0.01023162]
[1641476215893,0.74165,3372.2,3371.7,0.68727357]
[1641476216095,2.78766226,3372.3,3371.7,2.65005786]
[1641476216293,2.78766226,3372.3,3371.8,0.00909477]
[1641476216493,1.7338727,3372.4,3371.8,0.00909477]
[1641476216693,2.75733907,3372.4,3371.8,0.00909477]
[1641476216895,2.94034024,3372.6,3371.8,0.00909477]
[1641476217092,6.46686054,3372.7,3372.0,0.74152]
[1641476217093,9.16711326,3372.7,3372.0,0.74152]
[1641476217342,5.46921326,3372.7,3372.0,0.74152]
[1641476217540,4.34361326,3372.7,3372.1,0.0073895]
[1641476217738,27.77954621,3372.8,3372.1,0.0073895]
[1641476217940,27.77954621,3372.8,3372.4,0.74146]
[1641476218238,1.73604513,3372.6,3372.4,1.04146]
[1641476218638,1.73604513,3372.6,3372.4,3.02106333]
[1641476219242,1.73604513,3372.7,3372.4,3.02106333]
[1641476219942,27.35254621,3372.8,3372.4,3.02106333]
[1641476220544,27.35254621,3372.8,3372.5,0.7414]
[1641476220997,27.35254621,3372.8,3372.6,0.30454739]
[1641476221398,27.35254621,3372.8,3372.7,0.00397896]
[1641476222200,27.35254621,3372.8,3372.7,0.6910371]
[1641476222799,27.35254621,3372.8,3372.7,0.9910371]
[1641476222998,27.35254621,3372.8,3372.7,0.6910371]
[1641476223202,0.427,3373.0,3372.7,0.6910371]
[1641476223398,1.50422402,3373.0,3372.7,0.00397896]
[1641476223601,1.50422402,3373.0,3372.8,0.00341054]
[1641476223802,1.50422402,3373.0,3372.6,0.00454739]
[1641476224500,1.90881795,3372.9,3372.6,0.00454739]
[1641476224948,1.90881795,3372.9,3372.7,0.68705814]
[1641476225340,1.50422402,3373.0,3372.8,0.00341054]
[1641476225746,2.24574402,3373.0,3372.8,0.00341054]
[1641476226339,3.62326671,3373.0,3372.8,0.00341054]
[1641476226540,3.62326671,3373.0,3372.9,0.68705814]
[1641476226941,3.62326671,3373.0,3372.9,0.68990026]
[1641476227142,2.54604269,3373.0,3372.9,0.00284212]
[1641476227341,12.29604269,3373.0,3372.9,0.00284212]
[1641476227543,12.29604269,3373.0,3372.6,0.00454739]
[1641476228595,10.177,3373.0,3372.6,0.00454739]
[1641476228795,11.25422402,3373.0,3372.7,0.68705814]
[1641476229194,11.25422402,3373.0,3372.8,0.00341054]
[1641476229596,10.177,3373.0,3372.8,0.00341054]
[1641476230401,15.177,3373.0,3372.6,0.00454739]
[1641476230999,2.76541942,3372.9,3372.7,0.00397896]
[1641476231200,34.24736137,3372.9,3372.7,0.00397896]
[1641476231400,34.24736137,3372.9,3372.3,0.00625266]
[1641476231401,2.78303239,3372.8,3372.3,0.00625266]
[1641476232255,3.21003239,3372.8,3372.3,0.00625266]
[1641476232755,0.74158,3372.7,3372.3,0.00625266]
[1641476233955,1.67696805,3372.4,3372.0,0.00795793]
[1641476234156,0.74158,3372.7,3372.0,0.74951793]
[1641476234556,0.74158,3372.7,3372.1,0.0073895]
[1641476234759,0.427,3372.8,3372.1,0.0073895]
[1641476234959,0.427,3372.8,3372.1,0.71809066]
[1641476235256,0.427,3372.8,3372.2,0.00682108]
[1641476235860,0.427,3372.8,3372.2,0.71752224]
[1641476236099,1.9101141,3372.8,3372.2,0.71752224]
[1641476236295,1.9101141,3372.8,3372.3,0.00625266]
[1641476236495,4.00111802,3372.8,3372.3,0.71695382]
[1641476236899,4.00111802,3372.8,3372.4,0.00568423]
[1641476237095,3.84312392,3372.8,3372.4,0.00568423]
[1641476237696,3.84312392,3372.8,3372.1,0.0073895]
[1641476238198,6.57312899,3372.8,3372.1,0.0073895]
[1641476238399,2.45529666,3372.7,3372.5,0.71625161]
[1641476238600,9.13264622,3372.6,3372.5,1.01625161]
[1641476239198,4.59637288,3372.6,3372.2,0.71625161]
[1641476239400,1.71372666,3372.6,3372.3,0.3]
[1641476239598,1.71372666,3372.6,3372.3,0.30625266]
[1641476240051,0.74157,3372.7,3372.3,0.30625266]
[1641476240052,1.71372666,3372.5,3372.3,0.30625266]
[1641476241162,3.19690446,3372.6,3372.4,0.71625161]
[1641476241552,3.19690446,3372.6,3372.5,0.00511581]
[1641476241755,2.45531666,3372.6,3372.5,0.00511581]
[1641476241951,5.77875922,3372.8,3372.5,0.00511581]
[1641476241952,7.44317775,3372.8,3372.5,0.00511581]
[1641476242156,12.77735937,3372.6,3372.5,0.00511581]
[1641476242352,9.95,3372.4,3372.0,1.13133776]
[1641476242551,3.52310626,3372.3,3372.0,1.13133776]
[1641476242756,3.52310626,3372.3,3372.1,0.00227369]
[1641476242953,14.33586197,3372.2,3372.1,0.00227369]
[1641476243154,16.70027488,3372.2,3372.0,0.00396774]
[1641476243354,2.67560568,3372.1,3372.0,0.00396774]
[1641476243590,3.10260568,3372.1,3372.0,0.00396774]
[1641476243795,3.10260568,3372.1,3372.0,0.00680986]
[1641476243991,1.13814762,3371.8,3370.9,1.13016948]
[1641476244193,11.55,3371.6,3371.2,1.50861643]
[1641476244393,2.60639123,3371.5,3371.4,0.00341054]
[1641476244592,2.60639123,3371.5,3371.2,1.50861643]
[1641476244593,11.55,3371.4,3371.2,0.94412697]
[1641476244792,11.977,3371.3,3371.2,0.94412697]
[1641476244994,12.71899,3371.3,3371.2,0.94412697]
[1641476245191,12.71899,3371.3,3371.2,0.00113685]
[1641476245593,12.71899,3371.3,3371.0,0.00227369]
[1641476245795,0.741988,3371.2,3371.0,0.00227369]
[1641476245992,0.741988,3371.2,3370.5,0.00511581]
[1641476245993,0.742,3371.1,3370.5,0.00511581]
[1641476246192,2.14479799,3370.9,3370.5,0.00511581]
[1641476246592,2.14479799,3370.9,3370.1,0.0073895]
[1641476247238,2.14479799,3370.9,3370.2,2.26212206]
[1641476247645,0.74195,3371.0,3370.3,0.00625266]
[1641476247840,9.50837402,3371.2,3370.3,0.00625266]
[1641476248041,2.72624153,3371.1,3370.3,0.00625266]
[1641476248841,1.61235899,3371.0,3370.3,0.00625266]
[1641476249142,2.71774301,3370.9,3370.3,0.00625266]
[1641476249740,2.71774301,3370.9,3370.0,0.00795793]
[1641476249941,2.71774301,3370.9,3370.0,2.27088257]
[1641476250141,0.742,3370.7,3370.0,2.27088257]
[1641476250440,2.86483544,3370.9,3370.1,0.0073895]
[1641476250639,2.86483544,3370.9,3370.1,2.25711395]
[1641476250839,2.8,3370.7,3370.1,2.25711395]
[1641476251090,2.8,3370.7,3370.2,0.00682108]
[1641476251294,2.8,3370.7,3370.3,0.74195]
[1641476251490,2.8,3370.7,3370.3,1.04195]
[1641476251696,2.8,3370.7,3370.4,0.00568423]
[1641476252895,2.8,3370.7,3370.2,0.00682108]
[1641476253294,5.47445633,3370.7,3370.2,0.00682108]
[1641476253493,5.46319304,3370.7,3370.2,0.00682108]
[1641476253694,2.8,3370.7,3370.2,0.00682108]
[1641476254096,0.7419958,3370.6,3370.2,0.00682108]
[1641476254299,0.7419958,3370.6,3370.4,1.13181616]
[1641476254596,0.7419958,3370.6,3370.5,0.00511581]
[1641476254850,0.7419958,3370.6,3370.5,0.30511581]
[1641476255247,2.8,3370.7,3370.5,0.30511581]
[1641476255645,2.8,3370.7,3370.6,0.00454739]
[1641476256047,8.55,3370.7,3370.6,0.00454739]
[1641476257748,2.8,3370.7,3370.6,0.00454739]
[1641476258150,6.3,3370.7,3370.6,0.00454739]
[1641476258590,6.3,3370.7,3370.6,1.13636355]
[1641476259788,6.3,3370.7,3370.6,1.13945812]
[1641476259988,2.8,3370.7,3370.6,0.00764196]
[1641476260990,8.35,3370.7,3370.6,0.00764196]
[1641476261390,2.8,3370.7,3370.6,0.00764196]
[1641476264653,2.8,3370.7,3370.6,0.30764196]
[1641476264850,1.13814762,3371.8,3371.1,0.74156]
[1641476265048,1.13814762,3371.8,3371.2,1.0709194]
[1641476265247,0.00170527,3371.7,3371.2,1.07401397]
[1641476265446,0.00170527,3371.7,3371.3,2.17170073]
[1641476265651,0.00113685,3371.6,3371.3,3.6579353]
[1641476265847,0.00113685,3371.6,3371.3,2.1747953]
[1641476270651,2.80113685,3371.6,3371.3,2.1747953]
[1641476271855,0.00113685,3371.6,3371.3,2.1747953]
[1641476273055,5.00113685,3371.6,3371.3,2.1747953]
[1641476274903,5.00113685,3371.6,3371.3,2.916301]
[1641476275106,5.00113685,3371.6,3371.5,9.94149]
[1641476275301,5.00113685,3371.6,3371.5,9.94458474]
[1641476275603,5.00113685,3371.6,3371.5,11.24458474]
[1641476275804,5.00113685,3371.6,3371.5,12.75367296]
[1641476276003,5.00113685,3371.6,3371.5,12.75367298]
[1641476276203,5.00113685,3371.6,3371.5,3.55367298]
[1641476276602,5.00113685,3371.6,3371.5,3.95379651]
[1641476277103,5.00113685,3371.6,3371.5,2.95379651]
[1641476277354,4.99778795,3371.6,3371.5,6.15379651]
[1641476277554,4.99778795,3371.6,3371.5,3.95379651]
[1641476280058,4.99778795,3371.6,3371.5,2.44470829]
[1641476280862,4.99778795,3371.6,3371.5,3.95379651]
[1641476281310,4.99778795,3371.6,3371.5,2.44470829]
[1641476281710,4.99778795,3371.6,3371.5,0.40321829]
[1641476281910,10.59778795,3371.6,3371.5,0.39159369]
[1641476282111,4.99778795,3371.6,3371.5,0.39159369]
[1641476282813,8.69778795,3371.6,3371.5,0.39159369]
[1641476283813,14.99778795,3371.6,3371.5,0.39159369]
[1641476284411,16.48145795,3371.6,3371.5,0.39159369]
[1641476284862,16.90845795,3371.6,3371.5,0.39159369]
[1641476285758,10.60845795,3371.6,3371.5,0.39159369]
[1641476285959,13.00726241,3371.6,3371.5,0.39159369]
[1641476286759,11.52359241,3371.6,3371.5,0.39159369]
[1641476286960,5.42478795,3371.6,3371.5,0.39159369]
[1641476287659,8.42478795,3371.6,3371.5,0.39159369]
[1641476288159,12.23578438,3371.6,3371.5,0.39159369]
[1641476288801,9.42478795,3371.6,3371.5,0.39159369]
[1641476289701,12.57478795,3371.6,3371.5,0.39159369]
[1641476290706,12.14778795,3371.6,3371.5,0.39159369]
[1641476291206,12.57478795,3371.6,3371.5,0.39159369]
[1641476291809,18.00877234,3371.6,3370.9,1.13150995]
[1641476292003,0.77643441,3371.4,3370.9,1.13150995]
[1641476292258,0.77643441,3371.4,3371.0,0.00227369]
[1641476292259,1.52160789,3371.2,3371.0,0.00227369]
[1641476292455,14.85394859,3371.1,3371.0,0.00227369]
[1641476292656,14.85394859,3371.1,3370.8,0.00341054]
[1641476293155,11.095883,3370.9,3370.8,0.00341054]
[1641476293352,11.522883,3370.9,3370.8,0.00341054]
[1641476293652,11.522883,3370.9,3370.5,0.00511581]
[1641476293851,0.427,3370.9,3370.5,0.00511581]
[1641476294052,0.427,3370.9,3370.7,0.00396924]
[1641476294351,0.427,3370.9,3370.8,0.00341054]
[1641476294952,0.427,3370.9,3370.8,2.2473155]
[1641476295357,0.427,3370.9,3370.8,3.37882545]
[1641476296009,0.427,3370.9,3370.8,3.67882545]
[1641476296198,0.427,3370.9,3370.8,0.30341054]
[1641476296397,0.427,3370.9,3370.8,0.00341054]
[1641476297596,3.677,3370.9,3370.8,0.00341054]
[1641476297996,0.427,3370.9,3370.8,0.00341054]
[1641476298403,0.427,3370.9,3370.8,1.13515229]
[1641476298599,9.627,3370.9,3370.8,1.13515229]
[1641476299199,9.627,3370.9,3370.8,0.00341054]
[1641476299601,10.36898,3370.9,3370.8,0.00341054]
[1641476300253,0.427,3370.9,3370.8,0.00341054]
[1641476301552,4.977,3370.9,3370.8,0.00341054]
[1641476302151,4.55,3370.9,3370.8,0.00341054]
[1641476302953,9.5466511,3370.9,3370.8,0.00341054]
[1641476305208,9.5466511,3370.9,3370.8,1.13515229]
[1641476305609,9.5466511,3370.9,3370.8,1.43515229]
[1641476306509,4.9966511,3370.9,3370.8,1.43515229]
[1641476307356,4.9966511,3370.9,3370.8,4.27059942]
[1641476307552,4.9966511,3370.9,3370.8,14.97059942]
[1641476307749,4.9966511,3370.9,3370.8,12.13515229]
[1641476307951,4.9966511,3370.9,3370.8,11.00341054]
[1641476308149,4.9966511,3370.9,3370.8,12.51209048]
[1641476309153,4.9966511,3370.9,3370.8,11.00341054]
[1641476309453,4.9966511,3370.9,3370.8,14.01986137]
[1641476310356,4.9966511,3370.9,3370.8,11.00341054]
[1641476312099,4.9966511,3370.9,3370.8,14.40577483]
[1641476312301,4.9966511,3370.9,3370.8,4.70577483]
[1641476312500,4.9966511,3370.9,3370.8,3.40577483]
[1641476312700,4.9966511,3370.9,3370.8,0.389324]
[1641476313500,4.9966511,3370.9,3370.8,1.89817887]
[1641476313903,4.9966511,3370.9,3370.8,3.19817887]
[1641476314507,4.9966511,3370.9,3370.8,6.14817887]
[1641476314801,4.9966511,3370.9,3370.8,3.19817887]
[1641476314995,4.9966511,3370.9,3370.8,1.689324]
[1641476315196,4.9966511,3370.9,3370.8,0.689324]
[1641476315400,4.9966511,3370.9,3370.8,4.589324]
[1641476315597,4.9966511,3370.9,3370.8,5.289324]
[1641476316295,4.9966511,3370.9,3370.8,1.389324]
[1641476317498,4.9966511,3370.9,3370.8,5.239324]
[1641476318900,4.9966511,3370.9,3370.8,3.6526063]
[1641476321399,4.9966511,3370.9,3370.8,8.9526063]
[1641476321601,4.9966511,3370.9,3370.8,3.6526063]
[1641476322245,4.9966511,3370.9,3370.8,1.389324]
[1641476322458,4.9966511,3370.9,3370.8,8.889324]
[1641476322648,4.9966511,3370.9,3370.8,9.889324]
[1641476323049,4.9966511,3370.9,3370.8,12.66236284]
[1641476323747,1.13814762,3371.8,3371.5,1.15162225]
[1641476323947,1.13814762,3371.8,3371.6,3.45405624]
[1641476324151,0.00170527,3371.7,3371.6,3.75405624]
[1641476324348,1.4221529,3372.5,3371.6,3.75405624]
[1641476324349,1.06661467,3372.7,3371.7,11.55]
[1641476324547,1.06661467,3372.7,3371.7,12.2648]
[1641476324748,1.06661467,3372.7,3371.9,1.4825856]
[1641476324947,1.06661467,3372.7,3372.2,0.7413]
[1641476325348,1.06661467,3372.7,3372.3,0.3]
[1641476325649,1.06661467,3372.7,3372.3,0.7412485]
[1641476325849,1.91252481,3373.1,3372.3,0.7412485]
[1641476326099,1.91252481,3373.1,3372.7,0.74126]
[1641476326302,0.00682108,3372.9,3372.7,1.04126]
[1641476326496,0.00682108,3372.9,3372.7,2.44261031]
[1641476326702,1.91252481,3373.1,3372.7,4.4680657]
[1641476326703,0.00625266,3372.8,3372.7,4.4680657]
[1641476326898,6.17,3373.5,3372.9,11.5]
[1641476327099,1.9091064,3373.4,3373.3,5.25658652]
[1641476327697,1.9091064,3373.4,3373.3,1.10658652]
[1641476327896,1.9091064,3373.4,3373.3,1.40658652]
[1641476328700,6.17,3373.5,3373.3,2.14760652]
[1641476330358,1.06661467,3374.6,3373.3,2.88862652]
[1641476330558,1.06661467,3374.6,3373.9,0.74098]
[1641476330756,1.06661467,3374.6,3374.0,1.28140021]
[1641476330757,0.00852635,3374.3,3374.0,1.28140021]
[1641476330958,1.06661467,3374.6,3374.1,11.55]
[1641476331159,1.06661467,3374.6,3374.1,11.55113684]
[1641476331463,0.00113685,3374.5,3374.1,11.55113684]
[1641476331659,0.00113685,3374.5,3374.3,0.74071]
[1641476331862,0.00113685,3374.5,3374.3,1.04071]
[1641476332259,5.152e-05,3374.6,3374.3,1.7814904]
[1641476332457,5.152e-05,3374.6,3374.3,9.1814904]
[1641476332658,2.11534513,3374.8,3374.7,1.20679918]
[1641476332858,2.11534513,3374.8,3374.7,1.94750918]
[1641476333058,2.11534513,3374.8,3374.7,2.24750918]
[1641476333501,2.11534513,3374.8,3374.7,1.04071]
[1641476333904,1.4221529,3375.0,3374.7,1.04071]
[1641476334102,9.08862512,3375.6,3374.7,1.04071]
[1641476334103,6.17,3375.6,3374.7,1.04071]
[1641476334303,0.00227369,3374.9,3374.6,1.78141]
[1641476334607,0.00170527,3374.8,3374.7,1.3093698]
[1641476335004,0.00568423,3374.8,3374.7,1.3093698]
[1641476335203,0.00568423,3374.8,3374.6,1.78141]
[1641476335402,0.00568423,3374.8,3374.7,1.4814249]
[1641476335701,6.17,3375.6,3374.7,1.4814249]
[1641476336102,6.17,3375.6,3375.5,1.64020881]
[1641476336304,9.07,3375.6,3375.5,1.64020881]
[1641476336504,9.07625266,3375.6,3375.5,1.94020881]
[1641476336703,6.17625266,3375.6,3375.5,1.94020881]
[1641476337959,0.00625266,3375.6,3375.5,1.94020881]
[1641476340063,0.00625266,3375.6,3375.5,1.94417247]
[1641476343201,6.02625266,3376.2,3375.5,1.94417247]
[1641476343608,0.00284211,3376.1,3375.5,1.94417247]
[1641476344003,0.25393986,3376.5,3375.5,1.94417247]
[1641476344004,6.42221355,3376.5,3375.5,1.94417247]
[1641476344407,0.00227369,3376.4,3375.6,0.00227369]
[1641476344856,0.00170527,3376.3,3375.6,0.00227369]
[1641476345257,0.00113685,3376.2,3375.6,0.00227369]
[1641476346958,1.4221529,3375.8,3375.6,0.00227369]
[1641476348357,0.00113685,3376.2,3375.6,1.97215101]
[1641476348358,1.4221529,3375.7,3375.6,1.97215101]
[1641476349206,1.4221529,3375.8,3375.6,1.97215101]
[1641476349406,1.4221529,3375.8,3375.7,0.3]
[1641476349607,1.4221529,3375.8,3375.7,0.30170527]
[1641476349807,2.17082698,3376.0,3375.7,0.30170527]
[1641476350210,2.17082698,3376.0,3375.8,0.00113685]
[1641476351010,2.17082698,3376.0,3375.9,0.00580564]
[1641476351207,2.17082698,3376.1,3375.9,0.00580564]
[1641476351614,0.00113685,3376.2,3375.9,0.00580564]
[1641476354457,1.08686796,3376.0,3375.9,0.00580564]
[1641476354857,0.00113685,3376.2,3375.9,0.00580564]
[1641476361768,0.00113685,3376.2,3375.9,1.04635564]
[1641476362973,0.6676504,3376.8,3375.9,1.04635564]
[1641476362974,0.6676504,3376.8,3376.4,0.74027]
[1641476363170,0.6676504,3376.8,3376.4,1.37197]
[1641476363368,0.00284212,3376.7,3376.5,1.37985166]
[1641476363605,0.6676504,3376.8,3376.6,12.2901865]
[1641476363809,0.6636504,3376.8,3376.6,12.7171865]
[1641476364011,42.08110908,3378.7,3376.7,11.85]
[1641476364204,42.08110908,3378.7,3376.8,0.427]
[1641476364205,41.34090908,3378.7,3376.8,0.427]
[1641476364409,22.46770908,3378.7,3378.4,1.25340278]
[1641476364708,22.46770908,3378.7,3378.4,0.8941]
[1641476364709,0.00795793,3378.6,3378.4,0.8941]
[1641476364904,0.00795793,3378.6,3378.5,2.2468708]
[1641476365105,0.7401,3379.1,3378.5,2.2468708]
[1641476365306,6.94,3379.3,3378.5,2.2468708]
[1641476365307,6.97057685,3379.3,3378.5,2.2468708]
[1641476365511,0.00852635,3378.7,3377.0,2.6842812]
[1641476365709,0.427,3378.6,3376.9,0.00170527]
[1641476365909,0.01287845,3378.2,3376.9,0.00170527]
[1641476366109,1.92062105,3378.2,3376.9,0.00170527]
[1641476366312,0.74038,3377.9,3376.9,0.00170527]
[1641476366509,0.74038,3377.9,3377.7,1.62849416]
[1641476366709,0.00341054,3377.8,3377.7,1.62849416]
[1641476367110,0.00341054,3377.8,3377.7,1.92849416]
[1641476368159,0.00341054,3377.8,3377.7,2.92849416]
[1641476368354,0.00341054,3377.8,3377.7,1.92849416]
[1641476368553,0.00341054,3377.8,3377.7,2.92849416]
[1641476368756,3.30341054,3377.8,3377.7,1.92849416]
[1641476368954,0.00341054,3377.8,3377.7,2.92849416]
[1641476369154,0.00341054,3377.8,3377.7,1.92849416]
[1641476369355,0.00341054,3377.8,3377.7,2.92849416]
[1641476369557,0.00341054,3377.8,3377.7,6.04688818]
[1641476369759,6.17,3378.6,3378.5,7.74634966]
[1641476369957,0.6676504,3378.8,3378.5,8.44604966]
[1641476370158,0.6676504,3378.8,3378.5,9.74604966]
[1641476370360,0.6676504,3378.8,3378.6,1.0]
[1641476370556,0.6676504,3378.8,3378.6,1.73987]
[1641476373817,0.6676504,3378.8,3378.6,1.0]
[1641476374218,0.6676504,3378.8,3378.5,1.77974]
[1641476374418,0.6676504,3378.8,3378.2,0.09161051]
[1641476374623,0.6676504,3378.8,3377.5,1.55048155]
[1641476374862,0.6676504,3378.8,3377.5,2.88059304]
[1641476375061,0.6676504,3378.8,3377.5,1.75711149]
[1641476375362,2.18309394,3378.8,3377.5,1.75711149]
[1641476375661,2.18309394,3378.8,3377.9,1.48004]
[1641476375963,2.18309394,3378.8,3377.8,0.74013]
[1641476376161,0.6676504,3378.8,3377.8,1.74605111]
[1641476376359,0.6676504,3378.8,3377.8,1.00592111]
[1641476376561,0.6676504,3378.8,3377.8,0.00592111]
[1641476376762,0.6676504,3378.8,3377.8,1.00592111]
[1641476377362,0.6676504,3378.8,3378.2,0.74003]
[1641476377965,0.6676504,3378.8,3377.9,1.48005]
[1641476378608,0.7400913,3378.6,3377.9,1.48005]
[1641476378805,2.77295818,3378.5,3377.8,0.00592111]
[1641476379004,0.00397897,3378.5,3377.8,0.00592111]
[1641476379407,0.00397897,3378.5,3377.8,0.74602111]
[1641476379604,0.00397897,3378.5,3377.8,0.00592111]
[1641476379805,1.65627667,3378.0,3377.8,0.00592111]
[1641476380805,0.7402522,3378.0,3377.8,0.00592111]
[1641476381006,0.00397897,3378.5,3377.8,0.00592111]
[1641476381408,1.51522268,3378.6,3377.8,0.00592111]
[1641476381409,0.00341054,3378.4,3377.8,0.00592111]
[1641476381809,0.00284212,3378.3,3377.8,0.00592111]
[1641476382007,0.7401383,3378.2,3377.8,0.00592111]
[1641476382250,0.78098051,3378.2,3377.8,0.00592111]
[1641476382453,0.00170527,3378.1,3377.8,0.00592111]
[1641476382851,0.00113685,3378.0,3377.8,0.00592111]
[1641476383052,0.74136335,3378.0,3377.8,0.00592111]
[1641476383253,2.96801464,3377.9,3377.8,0.00592111]
[1641476383454,2.96801464,3377.9,3376.9,0.00170527]
[1641476383658,0.427,3377.8,3376.9,0.00170527]
[1641476383855,0.01296056,3378.0,3376.6,0.00682108]
[1641476383856,3.92067761,3377.7,3376.6,0.00682108]
[1641476384054,0.74056,3377.5,3376.6,0.00682108]
[1641476384254,2.10243214,3377.1,3376.6,0.00682108]
[1641476384454,0.7405911,3376.9,3376.6,0.00682108]
[1641476384654,0.77715903,3376.9,3376.6,0.00682108]
[1641476385257,1.51775903,3376.9,3376.6,0.00682108]
[1641476385455,2.99480531,3376.9,3376.6,0.00682108]
[1641476385657,2.25420531,3376.9,3376.5,2.21702318]
[1641476385857,0.7404533,3376.8,3376.6,0.30682108]
[1641476386114,3.7477,3377.3,3376.6,1.30682108]
[1641476386316,1.4807088,3377.6,3376.7,0.00625265]
[1641476386517,5.1364,3377.8,3376.7,0.00625265]
[1641476386518,1.2225,3377.8,3376.7,0.00625265]
[1641476386714,3.07117596,3377.9,3376.7,0.00625265]
[1641476386918,3.0356,3377.9,3376.7,0.00625265]
[1641476387117,1.79430848,3378.0,3376.7,0.00625265]
[1641476387516,0.7402639,3377.6,3376.7,0.00625265]
[1641476387717,0.7402639,3377.6,3377.1,0.74027]
[1641476388218,0.7402639,3377.6,3377.2,0.00341054]
[1641476388621,0.77194089,3377.6,3377.2,0.00341054]
[1641476389219,0.03167699,3377.6,3376.9,0.00511581]
[1641476389429,0.7403356,3377.4,3376.8,0.00568423]
[1641476389869,0.7403356,3377.4,3376.9,0.74031]
[1641476390070,0.7403356,3377.4,3376.8,0.00568423]
[1641476390269,0.7403356,3377.4,3377.0,0.00454738]
[1641476390470,1.51449002,3377.5,3376.8,0.00568423]
[1641476390669,0.7403891,3377.1,3376.8,0.00568423]
[1641476391769,0.7403891,3377.1,3376.7,0.00625265]
[1641476391969,0.7403891,3377.1,3376.6,0.74038]
[1641476392369,0.7403891,3377.1,3376.7,0.00625265]
[1641476392769,3.40245793,3377.8,3376.7,0.00625265]
[1641476392969,3.40245793,3377.8,3376.7,1.48682265]
[1641476393176,2.23865793,3377.8,3376.7,1.78057]
[1641476393371,2.23865793,3377.8,3376.8,0.00568423]
[1641476393607,1.52044987,3377.9,3376.8,0.00568423]
[1641476393805,1.94744987,3377.9,3376.8,0.00568423]
[1641476394507,1.94744987,3377.9,3377.1,0.74029]
[1641476394508,0.7403047,3377.6,3377.1,0.74029]
[1641476394706,1.94744987,3377.9,3377.1,0.74029]
[1641476394908,1.52044987,3377.9,3377.2,0.00341054]
[1641476395707,0.7402473,3377.7,3377.2,0.00341054]
[1641476396908,0.7402473,3377.7,3377.3,1.78953509]
[1641476397108,0.7402473,3377.7,3377.4,0.3]
[1641476397367,0.7402473,3377.7,3377.4,0.30227369]
[1641476397571,0.00170527,3378.1,3377.5,0.74189527]
[1641476397868,0.00113685,3378.0,3377.6,0.00113684]
[1641476398269,8.3807,3378.7,3377.6,0.00113684]
[1641476398270,0.00454739,3378.6,3377.7,1.38250064]
[1641476398569,0.00454739,3378.6,3377.7,3.16264064]
[1641476398570,0.32827667,3378.6,3377.7,3.16264064]
[1641476398768,0.32827667,3378.6,3377.9,0.74012]
[1641476398968,0.00454739,3378.6,3377.9,1.04012]
[1641476399569,0.03477104,3378.5,3377.9,0.3]
[1641476399767,0.74472739,3378.6,3377.9,0.3]
[1641476399768,0.78106753,3378.6,3377.9,0.3]
[1641476399968,0.00341054,3378.4,3377.5,1.48195527]
[1641476400168,0.00341054,3378.4,3377.5,1.78195527]
[1641476400369,0.00284212,3378.3,3377.6,0.00113684]
[1641476400772,0.77909288,3377.9,3377.6,0.00113684]
[1641476401407,0.03884738,3377.9,3377.5,0.00170527]
[1641476401609,1.99502261,3377.8,3377.1,1.80515681]
[1641476402012,0.7402675,3377.8,3377.2,0.74369054]
[1641476402309,0.77551878,3377.8,3377.3,0.00284211]
[1641476402909,0.33815613,3377.7,3377.3,0.00284211]
[1641476403309,0.7403108,3377.6,3377.3,3.26347827]
[1641476403709,0.7403108,3377.6,3377.4,0.00227369]
[1641476404211,0.33815613,3377.5,3377.4,0.00227369]
[1641476404614,0.33815613,3377.5,3377.4,0.3]
[1641476404856,0.7403108,3377.6,3377.4,0.3]
[1641476405056,0.7403108,3377.6,3377.4,0.30227369]
[1641476405356,0.7403108,3377.6,3377.5,0.00170527]
[1641476405957,0.7403108,3377.6,3377.5,2.13715461]
[1641476406158,0.7403108,3377.6,3377.5,2.43715461]
[1641476406458,0.7403108,3377.6,3377.5,2.43885988]
[1641476406863,5.36830019,3377.6,3377.5,0.30170527]
[1641476407265,0.7403108,3377.6,3377.5,0.30170527]
[1641476407560,0.7403108,3377.6,3377.5,2.13885988]
[1641476408161,0.7403108,3377.6,3377.5,0.00170527]
[1641476408362,0.7403108,3377.6,3377.5,1.00170527]
[1641476408612,0.03019068,3377.8,3377.5,1.00170527]
[1641476408810,0.00113685,3378.0,3377.5,3.87908988]
[1641476409008,0.00113685,3378.0,3377.6,0.00113684]
[1641476409209,0.329152,3377.7,3377.6,0.00113684]
[1641476410210,1.51898645,3377.9,3377.6,2.13829145]
[1641476410616,1.51898645,3377.9,3377.6,2.43829145]
[1641476410617,1.4804991,3377.9,3377.6,2.43829145]
[1641476410812,0.329152,3377.8,3377.6,3.561773]
[1641476411211,0.329152,3377.8,3377.7,1.0]
[1641476411610,0.329152,3377.8,3377.7,3.13715461]
[1641476413459,6.129152,3377.8,3377.7,2.13715461]
[1641476413658,8.85050007,3377.8,3377.7,3.13715461]
[1641476413859,6.129152,3377.8,3377.7,2.13715461]
[1641476414260,11.529152,3377.8,3377.7,2.13715461]
[1641476414860,11.529152,3377.8,3377.6,0.00113684]
[1641476415261,11.529152,3377.8,3377.1,0.00397896]
[1641476415465,0.7404444,3377.5,3377.1,0.00397896]
[1641476415661,0.7720443,3377.5,3377.1,0.00397896]
[1641476416407,3.48880837,3377.5,3377.1,0.00397896]
[1641476416607,0.7720443,3377.5,3377.1,0.00397896]
[1641476416808,0.74044,3377.3,3377.0,0.00454738]